Cogmind - Beta 12 @@@ ROGUE MODE // 2023.03.18 @ 14:46:27 Player: ArabianSandBoa Result: Destroyed by D-53 Grenadier with Mini Grenade Launcher Performance ------------- Evolutions (0) 0 Regions Visited (4) 800 Robots Destroyed (47) 235 Value Destroyed (1024) 1024 Prototype IDs (2) 40 Alien Tech Used (0) 0 Bonus (2237) 2237 TOTAL SCORE: 4336 Bonus ------- Follower Combat Kills 1974 Aligned with FarCom 300 Friendly Fire -37 Cogmind --------- Core Integrity 0/250 Matter 292/300 Energy 150/150 System Corruption 1% Temperature Cool (0) Movement Rolling (395) Ox21 Location -9/Mines Parts ------- > --- POWER (1) -------- Micro Nuclear Core (fused) > --- PROPULSION (2) --- Wheel > --- UTILITY (2) ------ Humpback > --- WEAPON (2) ------- Gauss Rifle Gauss Rifle > --- INVENTORY (35) --- Light Nuclear Core Micro Nuclear Core Micro Nuclear Core Micro Nuclear Core Gravmag System Gravmag System Gravmag System Gravmag System Gravmag System Gravmag System Makeshift Hover Unit Improved Heat Sink Medium Storage Unit Humpback Humpback Modified TNC Targeting Computer Target Analyzer Target Analyzer Target Analyzer Target Analyzer Makeshift Transmission Jammer Core Shielding Core Shielding Core Shielding Shock Rifle Shock Rifle Light Cannon Remote Datajack Katana Katana Peak State ------------ > --- POWER ------------ Micro Nuclear Core > --- PROPULSION ------- Wheel > --- UTILITY ---------- Humpback > --- WEAPON ----------- Gauss Rifle Gauss Rifle > --- INVENTORY -------- Light Nuclear Core Micro Nuclear Core Micro Nuclear Core Micro Nuclear Core Gravmag System Gravmag System Gravmag System Gravmag System Gravmag System Makeshift Hover Unit Improved Heat Sink Medium Storage Unit Humpback Humpback Modified TNC Targeting Computer Target Analyzer Target Analyzer Target Analyzer Target Analyzer Makeshift Transmission Jammer Core Shielding Core Shielding Core Shielding Shock Rifle Shock Rifle Light Cannon Remote Datajack Katana Katana [Rating: 24] Favorites ----------- Power Ion Engine Engine Ion Engine Power Core Micro Nuclear Core Propulsion Light Treads Treads Light Treads Leg Aluminum Leg Wheel Wheel Utility High-capacity Storage Unit Device Heat Sink Storage High-capacity Storage Unit Protection Propulsion Shielding Weapon Medium Laser Energy Gun Medium Laser Energy Cannon Beam Cannon Ballistic Gun Gauss Rifle Ballistic Cannon Light Cannon Build | -11 -10 -10 -10 -9 ------- Run | Jun Mat Min Exi Min Slots Evolved . | . . . . . Power . | . . . . . Propulsion . | . . . . . Utility . | . . . . . Weapon . | . . . . . Parts Attached 30 | 1 16 2 11 . Power 4 | . 3 . 1 . Engine 3 | . 3 . . . Core 1 | . . . 1 . Reactor . | . . . . . Propulsion 11 | . 7 . 4 . Treads 6 | . 3 . 3 . Leg . | . . . . . Wheel 5 | . 4 . 1 . Hover . | . . . . . Flight . | . . . . . Utility 7 | . 3 1 3 . Device 1 | . 1 . . . Storage 4 | . 2 . 2 . Processor . | . . . . . Hackware . | . . . . . Protection 2 | . . 1 1 . Artifact . | . . . . . Weapon 8 | 1 3 1 3 . Energy Gun 2 | 1 1 . . . Energy Cannon 2 | . 2 . . . Ballistic Gun 3 | . . 1 2 . Ballistic Cannon 1 | . . . 1 . Launcher . | . . . . . Special Weapon . | . . . . . Impact Weapon . | . . . . . Slashing Weapon . | . . . . . Piercing Weapon . | . . . . . Special Melee Weapon . | . . . . . Unidentified Prototypes . | . . . . . Parts Lost 7 | . 3 2 2 . Power 2 | . 1 . 1 . Propulsion 1 | . 1 . . . Utility 2 | . . 1 1 . Weapon 2 | . 1 1 . . Highest Loss Streak 2 | . 2 2 2 . To Critical Strikes . | . . . . . Average Slot Usage (%) 92 | . 98 100 85 71 Engine 9 | . 13 14 5 . Core 3 | . . . 7 14 Treads 21 | . 24 28 15 . Wheel 3 | . 2 . 6 14 Device 4 | . 13 . . . Storage 14 | . 14 14 14 14 Protection 6 | . . 13 6 . Energy Gun 9 | . 15 14 3 . Energy Cannon 3 | . 11 . . . Ballistic Gun 14 | . . 13 24 28 Naked Turns . | . . . . . Heaviest Build 214 | 14 51 50 214 214 Greatest Support 40 | 20 40 40 40 10 Greatest Overweight (x) 21 | . 7 1 21 21 Average Overweight (x) 3 | . . 1 8 21 Largest Inventory Capacity 35 | 8 20 20 35 35 Average Capacity 22 | 8 18 20 26 35 Most Carried 33 | 6 17 16 33 33 Average Carried 16 | 6 14 14 19 33 Final Capacity 35 | 8 20 20 35 35 Final Carried 33 | 6 15 16 33 33 Class Distribution -------------------- 76% | Mutant 19% | Hauler-Mutant 3% | Scavenger-Mutant Dominant Class ---------------- Mutant | -10/Materials Mutant | -10/Mines Mutant | -10/Exiles Hauler-Mutant | -9/Mines Resources | -11 -10 -10 -10 -9 ----------- Run | Jun Mat Min Exi Min Matter Collected 1011 | 210 352 50 357 42 Remotely . | . . . . . Salvage Created 1389 | . 999 135 165 90 Parts 78 | . 56 9 12 1 Haulers Intercepted 2 | . 2 . . . Recyclers Shooed . | . . . . . Parts Field Recycled . | . . . . . Retrieved Matter . | . . . . . Parts Self-Destructed . | . . . . . Prevented . | . . . . . Kills | -11 -10 -10 -10 -9 ------- Run | Jun Mat Min Exi Min Combat Hostiles Destroyed 36 | . 24 4 6 2 Guns 17 | . 6 4 5 2 Cannons 17 | . 16 . 1 . Classes Destroyed 9 | . 8 . 1 . Worker 2 | . 1 1 . . Builder 1 | . 1 . . . Hauler 2 | . 2 . . . Recycler 2 | . 1 1 . . Operator 1 | . 1 . . . Watcher 3 | . 3 . . . Swarmer 13 | . 9 4 . . Grunt 22 | . 15 . 5 2 Brawler 1 | . . . 1 . Best Kill Streak 7 | . 7 3 4 2 Combat Bots Only 4 | . 3 3 4 2 Max Kills in Single Turn 2 | . 1 2 2 1 Gunslinging . | . . . . . Exploded . | . . . . . Melee . | . . . . . Uniques/NPCs Destroyed . | . . . . . Combat | -11 -10 -10 -10 -9 -------- Run | Jun Mat Min Exi Min Damage Taken 1479 | . 584 237 510 148 Core 283 | . 113 50 73 47 Absorbed by Shields . | . . . . . Redirected to Shielding 50 | . . 11 39 . Core Remaining (%) 100 | 100 . . . . Volleys Fired 144 | . 85 11 43 5 Largest 2 | . 2 2 2 2 Hottest 110 | . 110 100 56 56 Shots Fired 260 | . 166 22 62 10 Gun 162 | . 84 22 46 10 Cannon 98 | . 82 . 16 . Launcher . | . . . . . Special . | . . . . . Kinetic 82 | . . 10 62 10 Thermal 178 | . 166 12 . . Explosive . | . . . . . Electromagnetic . | . . . . . Robot Hit Streak 17 | . 17 7 8 5 Robot Miss Streak 4 | . 4 3 2 1 Penetration Max . | . . . . . Secondary Targets . | . . . . . Shots Hit Robots 168 | . 103 15 42 8 Core Hits 61 | . 42 8 8 3 Critical Kills 1 | . 1 . . . Critical Parts Destroyed 1 | . . . 1 . Critical Strikes 9 | . 5 2 2 . Burn 6 | . 4 2 . . Meltdown 1 | . 1 . . . Destroy 1 | . . . 1 . Blast 1 | . . . 1 . Melee Attacks . | . . . . . Impact . | . . . . . Slashing . | . . . . . Piercing . | . . . . . Sneak Attacks . | . . . . . Combat Hostiles . | . . . . . Follow-up Attacks . | . . . . . Damage Inflicted 2680 | . 1621 229 671 159 Guns 1591 | . 751 229 452 159 Cannons 1079 | . 860 . 219 . Explosions . | . . . . . Melee . | . . . . . Ramming 10 | . 10 . . . Kinetic 940 | . . 110 671 159 Thermal 1730 | . 1611 119 . . Explosive . | . . . . . Electromagnetic . | . . . . . Impact . | . . . . . Slashing . | . . . . . Piercing . | . . . . . Highest Corruption 1 | . . . 1 1 Average Corruption 1 | . . . 1 1 Corruption Purged . | . . . . . Corruption Blocked . | . . . . . Effects 22 | . . . 21 1 Message Errors 3 | . . . 3 . Matter Fused 4 | . . . 4 . Heat Flow Errors 3 | . . . 3 . Energy Discharges 1 | . . . 1 . Parts Fused 1 | . . . 1 . Data Loss (minor) 4 | . . . 4 . Data Loss (major) 4 | . . . 3 1 Misfires 1 | . . . 1 . Weapon Failures 1 | . . . 1 . Overload Shots . | . . . . . Overflow Damage 26 | . 26 . . . Projectiles 26 | . 26 . . . Explosions . | . . . . . Melee . | . . . . . Knockbacks . | . . . . . Impact . | . . . . . Kinetic . | . . . . . Secondary . | . . . . . Self-Inflicted Damage . | . . . . . Shots . | . . . . . Rammed 1 | . 1 . . . Targets Rammed 1 | . 1 . . . Kicked . | . . . . . Crushed . | . . . . . Highest Temperature 206 | . 147 36 206 33 Average Temperature 42 | . 42 14 84 24 Received Heat Transfer 345 | . 162 6 144 33 Siege Activations . | . . . . . Robots Corrupted . | . . . . . Combat Hostiles . | . . . . . Parts Fried . | . . . . . Impact Corruptions . | . . . . . Robots Melted 2 | . 2 . . . Combat Hostiles 2 | . 2 . . . Parts Melted 10 | . 10 . . . Heat Transferred 4699 | . 4218 481 . . Parts Sabotaged . | . . . . . Parts Stolen . | . . . . . Parts Stripped . | . . . . . Power Chain Reactions . | . . . . . Missiles Intercepted . | . . . . . Alert | -11 -10 -10 -10 -9 ------- Run | Jun Mat Min Exi Min Peak Influence 363 | . 363 165 . 50 Initial 100 | . . 100 . . Average 139 | . 216 49 . 41 Maximum Alert Level 1 | . 1 . . . Low Security (%) 68 | 100 42 100 . 100 Level 1 31 | . 57 . . . Level 2 . | . . . . . Level 3 . | . . . . . Level 4 . | . . . . . Level 5 . | . . . . . High Security . | . . . . . Max Security . | . . . . . Squads Dispatched 7 | . 7 . . . Investigation 6 | . 6 . . . Extermination . | . . . . . Reinforcement 1 | . 1 . . . Assault . | . . . . . Garrison . | . . . . . Intercept . | . . . . . Searches Triggered . | . . . . . Construction Impeded . | . . . . . Haulers Reinforced . | . . . . . Active Scanning Responses . | . . . . . Cargo Convoy Interrupts . | . . . . . Stealth | -11 -10 -10 -10 -9 --------- Run | Jun Mat Min Exi Min Distress Signals 1 | . 1 . . . Communications Jammed . | . . . . . Distress Signals . | . . . . . Times Spotted 85 | . 33 8 41 3 Peak Tracking Total 8 | . 3 3 8 2 Tactical Retreats 3 | . 2 . 1 . Traps | -11 -10 -10 -10 -9 ------- Run | Jun Mat Min Exi Min Traps Triggered 6 | . 6 . . . Indirectly . | . . . . . Trap Hack Attempts . | . . . . . Triggered . | . . . . . Disarmed . | . . . . . Reprogrammed . | . . . . . Reused . | . . . . . Traps Extracted . | . . . . . Installed . | . . . . . Triggered . | . . . . . Exploded 1 | . . . 1 . Machines | -11 -10 -10 -10 -9 ---------- Run | Jun Mat Min Exi Min Machines Disabled 4 | . 1 . 3 . Max in Single Turn 1 | . 1 . 1 . Machines Repaired . | . . . . . Machines Sabotaged . | . . . . . Overloaded Fab Kills . | . . . . . Hacking | -11 -10 -10 -10 -9 --------- Run | Jun Mat Min Exi Min Machines Accessed 7 | . 7 . . . Terminals 6 | . 6 . . . Fabricators . | . . . . . Repair Stations . | . . . . . Recycling Units 1 | . 1 . . . Scanalyzers . | . . . . . Garrison Access . | . . . . . Total Hacks 19 | . 19 . . . Successful 14 | . 14 . . . Failed 5 | . 5 . . . Catastrophic . | . . . . . Database Lockouts . | . . . . . Manual 7 | . 6 . 1 . Terminals 16 | . 16 . . . Fabricators . | . . . . . Repair Stations . | . . . . . Recycling Units 3 | . 3 . . . Scanalyzers . | . . . . . Garrison Access . | . . . . . Terminal Hacks 9 | . 9 . . . Robot Analysis 3 | . 3 . . . Prototype ID Bank 1 | . 1 . . . Terminal Index 1 | . 1 . . . Hauler Manifests 1 | . 1 . . . Registered Components 1 | . 1 . . . Zone Layout 2 | . 2 . . . Fabricator Hacks . | . . . . . Repair Station Hacks . | . . . . . Recycling Unit Hacks 2 | . 2 . . . Report Inventory 1 | . 1 . . . Retrieve Components 1 | . 1 . . . Scanalyzer . | . . . . . Garrison Access Hacks . | . . . . . Unauthorized Hacks 3 | . 3 . . . Terminals 2 | . 2 . . . Botnet 2 | . 2 . . . Fabricators . | . . . . . Repair Stations . | . . . . . Recycling Units 1 | . 1 . . . Tunnel 1 | . 1 . . . Scanalyzers . | . . . . . Garrison Access . | . . . . . Data Cores Recovered . | . . . . . Used . | . . . . . Hacking Detections 6 | . 6 . . . Full Trace Events 3 | . 3 . . . Feedback Events . | . . . . . Feedback Blocked . | . . . . . Robot Schematics Acquired . | . . . . . Robots Built . | . . . . . Authchips . | . . . . . Time . | . . . . . Total Robot Build Rating . | . . . . . Part Schematics Acquired . | . . . . . Parts Built . | . . . . . Authchips . | . . . . . Time . | . . . . . Total Part Build Rating . | . . . . . Parts Repaired . | . . . . . Time . | . . . . . Parts Recycled . | . . . . . Recycled Matter . | . . . . . Retrieved Matter . | . . . . . Retrieved Components 3 | . 3 . . . Parts Scanalyzed . | . . . . . Part Schematics Acquired . | . . . . . Parts Damaged . | . . . . . Bothacking | -11 -10 -10 -10 -9 ------------ Run | Jun Mat Min Exi Min Used RIF Installer . | . . . . . Robots Hacked . | . . . . . Non-combat . | . . . . . Combat . | . . . . . Robot Hacks Applied . | . . . . . Relay Couplers Released . | . . . . . Fabnet Peak Effective % . | . . . . . Robots Rewired . | . . . . . Allies Hacked . | . . . . . Hacks Repelled . | . . . . . Allies | -11 -10 -10 -10 -9 -------- Run | Jun Mat Min Exi Min Total Allies 2 | . . 2 . . Largest Group 2 | . . 2 2 . Highest-Rated Group 56 | . . 56 56 . Highest-Rated Ally 31 | . . 31 31 . Total Orders . | . . . . . Ally Attacks 148 | . . 10 138 . Total Damage 6853 | . . 192 6661 . Kills 61 | . . 2 59 . Allies Corrupted . | . . . . . Allies Melted . | . . . . . Turrets Deployed 3 | . . . 3 . Intel | -11 -10 -10 -10 -9 ------- Run | Jun Mat Min Exi Min Robot Analysis Total 3 | . 3 . . . Derelict Logs Recovered 2 | . . 2 . . Drone Launches . | . . . . . Drone Recoveries . | . . . . . Exploration | -11 -10 -10 -10 -9 ------------- Run | Jun Mat Min Exi Min Turns Passed 5902 | 4 1814 1494 2557 33 Spaces Moved 2042 | 3 678 599 759 3 Core 6 | . 6 . . . Treads 1594 | . 581 599 414 . Legs 28 | 3 25 . . . Wheels 414 | . 66 . 345 3 Hover . | . . . . . Flight . | . . . . . Fastest Speed 95 | 120 105 240 95 395 Average Speed 245 | 120 202 240 287 395 Slowest Speed 400 | 120 400 240 395 395 Overloaded Moves . | . . . . . Propulsion Burnouts . | . . . . . Robots Hopped . | . . . . . Cave-ins Triggered . | . . . . . Exploration Rate (%) 55 | 2 99 99 71 7 Regions Visited 4 Branch Regions 3 Pre-discovered Areas 1 | . 1 . . . Known Exits Taken . | . . . . . Unknown Exits Taken 4 | 1 1 1 1 . Scrap Searched 1 | . . 1 . . Spaces Dug . | . . . . . Terrain Destroyed 1 | . . . 1 . Melee . | . . . . . Projectile . | . . . . . AOE . | . . . . . Terrain Rammed . | . . . . . Walls Destroyed . | . . . . . Machines Disabled . | . . . . . Actions | -11 -10 -10 -10 -9 --------- Run | Jun Mat Min Exi Min Total 2691 | 3 954 634 1086 14 Wait 368 | . 146 20 196 6 Move 2038 | 2 677 598 758 3 Hop . | . . . . . Pick Up 69 | . 21 3 45 . Fast Attach 4 | . 1 . 3 . Attach 13 | . 9 2 2 . Detach . | . . . . . Swap 13 | 1 6 . 6 . Drop 41 | . 8 . 33 . Fire 144 | . 85 11 43 5 Melee . | . . . . . Ram . | . . . . . Kick . | . . . . . Crush 1 | . 1 . . . Escape Stasis . | . . . . . Rewire . | . . . . . Trap . | . . . . . Miscellaneous . | . . . . . Route ------- -11/Junkyard -10/Materials (discovered 5 exits: [*Mat x3] / [*Min x2]) -10/Mines (discovered 3 exits: [*Mat x2] / *Exi) -10/Exiles -9/Mines History --------- Turn | Location | Event 3 | -11/Junkyard | Discovered new exit (range 0) 5 | -11/Junkyard | Entered Materials 194 | -10/Materials | Discovered new exit (range 14) 307 | -10/Materials | Build established: Mutant 353 | -10/Materials | Discovered new exit (range 7) 456 | -10/Materials | Discovered new exit (range 16) 689 | -10/Materials | Discovered new exit (range 16) 1632 | -10/Materials | Discovered new exit (range 11) 1819 | -10/Materials | Entered Mines 1824 | -10/Mines | Core integrity fell below 50% 2049 | -10/Mines | Discovered new exit (range 9) 2097 | -10/Mines | Deemed a non-threat by the Exiles lab entrance 2097 | -10/Mines | Discovered new exit (range 5) 2525 | -10/Mines | Learned Materials emergency access door positions 2566 | -10/Mines | Learned Materials terminal intel 3065 | -10/Mines | Discovered new exit (range 13) 3313 | -10/Mines | Entered Exiles 3313 | -10/Exiles | Accompanied by 2 allies 3343 | -10/Exiles | Led the pair of lost Derelicts to a safe place 3372 | -10/Exiles | Met 8R-AWN 3415 | -10/Exiles | Met EX-HEX 3482 | -10/Exiles | Met EX-BIN 3579 | -10/Exiles | Aligned with FarCom system 3582 | -10/Exiles | Given EX-Vault access code 3637 | -10/Exiles | Opened EX-Vault 3647 | -10/Exiles | Found Prototype Processor 3650 | -10/Exiles | Found Deploy-a-Sentry 3653 | -10/Exiles | Found Deploy-a-Sentry 3657 | -10/Exiles | Found Deploy-a-Sentry 3708 | -10/Exiles | Warned to stay clear of 0b10 Research branches 3738 | -10/Exiles | Exiles lab attacked by MAIN.C 3799 | -10/Exiles | DAS Turret deployed 3809 | -10/Exiles | DAS Turret deployed 3848 | -10/Exiles | DAS Turret deployed 4311 | -10/Exiles | Core integrity fell below 20% 5036 | -10/Exiles | Build established: Hauler-Mutant 5545 | -10/Exiles | Attacked by the Exiles 5832 | -10/Exiles | Discovered new exit (range 10) 5870 | -10/Exiles | Left Exiles lab with Modified TNC 5870 | -10/Exiles | Entered Mines 5871 | -9/Mines | Assembled infested the area 5876 | -9/Mines | Assisted by a Guerilla fighting off Assembled 5903 | -9/Mines | Destroyed by D-53 Grenadier with Mini Grenade Launcher Last Messages --------------- 05873_ Slug penetrates G-47 Trooper. 05873_ G-47 Trooper destroyed. 05874_ 4Y-OPH(h): "I'll hold them off! Go on ahead or try to find another way!" 05875_ System corrupted: Substantial component data lost. 05875_ HV Slug penetrates G-34 Mercenary. 05875_ G-34 Mercenary suffers critical hit (Destroy). 05875_ G-34 Mercenary knocked back. 05876_ A derelict emerges from the shadows: "You need to get out of here! I've been tracking a group of Assembled to figure out where they're coming from, and they're closing on this area, come on!" 05876_ Slug penetrates Wall. 05876_ Slug penetrates G-34 Mercenary. 05877_ HV Slug penetrates Wall. 05879_ G-34 Mercenary destroyed. 05879_ Slug penetrates Wall. 05886_ Acquired 42 matter. 05891_ 4Y-OPH(h) destroyed. 05900_ Slug penetrates D-53 Grenadier. 05902_ The unstable cave ceiling collapses. Map ----- +----------------------------------------------------+ | ?????????????????????????????????????????????? | | ?????????????????????????????????????????????? | | ?????????????????????????????????????????????? | | ?????????????????????????????????????????????? | | ?????????????????????????????????????????????? | | ?????????????????????????????????????????????? | | ?????????????????????????????????????????????? | | ??????????????????????????? ????????????????? | | ??????????????????????????? ????????????????? | | ??????????????????????????? ????????????????? | | ??????????????????????????# #???????????????? | | ??????????????????????????# ##??????????????? | | ??????????????????????????# ##?????????????? | | ??????????????????????????# ##????????????? | | ???????????????????##????# ##???????????? | | ??????????????????## #??? #???????????? | | ??????????????????# ### #???????????? | | ??????????????????# # = #??? ??????? | | ???????????????????# *% ### #??????? | | ???????????????????# # #??????? | | ???????????????????# # #??????? | | ??????????????????## ## d #????????? | | ??????????????????? t ?????????? | | ????????????????????? % #????????????? | | ?????????????????????## ###?????????????? | | ?????????????????????# =@ #????????????????? | | ?????????????????????## #????????????????? | | ??????????????????????## #????????????????? | | ???????????????????????######????????????????? | | ?????????????????????????????????????????????? | | ?????????????????????????????????????????????? | | ?????????????????????????????????????????????? | | | | | | | | | | | | | | | | | | | | | | | | | | | | | | | | | | | | | +----------------------------------------------------+ Best States ------------- Heat Dissipation 35 Energy Generation 15 Energy Capacity 250 Matter Stores 500 Matter Capacity 500 Sight Range 16 Terrain Scan Density 10 Armor Coverage 150 Propulsion Shielding 33 Evasion (%) 55 Recoil Reduction 2 Item Schematics ----------------- None Robot Schematics ------------------ None Fabricated ------------ Nothing Alien Tech Used ----------------- None Achievements -------------- None Challenges ------------ None Game ------ Seed AlloyBattleBay Manual? 1 Play Time 00:26:07 Cumulative 488.9 hours Start 2023.03.18 @ 14:16:06 End 2023.03.18 @ 14:46:27 Sessions 1 Manual Loads 0 Difficulty Rogue Special Mode None Game No. 528 Rogue 528 Adventurer 0 Explorer 0 Win Type - Total 1 Types 1/0/0/0/0/0/0/0/0 Lore% 61 Gallery% 82 Achievement% 65 Wizard Run 0 Options --------- ASCII 0 Keyboard 0 Movement Mouse Keybinds 0 Fullscreen 2 Font 24/Smallcaps Map View 76x50 Tactical HUD 1 Map Filters NONE Filters NONE Steam 1 RUN: 46a34cf8-f537-449d-894b-f60429b70e34